bitfinex-derivatives/quotes_ETHF0:USTF0_20250205
["timestamp","ask_amount","ask_price","bid_price","bid_amount"]
[1738728380025,0.00550196,2721.7,2721.4,6.34298224]
[1738728380219,0.00550196,2721.7,2721.4,3.13518224]
[1738728382718,0.00550196,2721.7,2721.6,3.2078]
[1738728383025,0.00550196,2721.7,2721.4,3.13518224]
[1738728386522,0.00550196,2721.7,2721.4,2.54078224]
[1738728389425,3.2078,2721.6,2721.4,2.54078224]
[1738728391228,0.00550196,2721.7,2721.4,2.54078224]
[1738728393625,0.00550196,2721.7,2721.4,5.08156448]
[1738728393833,0.00550196,2721.7,2721.6,3.2078]
[1738728394135,0.00550196,2721.7,2721.6,3.66023826]
[1738728394431,0.00550196,2721.7,2721.6,4.24143826]
[1738728394641,6.1718,2722.8,2721.6,9.60943826]
[1738728394839,3.2078,2722.8,2722.6,2.54078224]
[1738728395030,3.2078,2722.8,2722.3,2.54078224]
[1738728395231,0.5951,2722.7,2722.3,2.54078224]
[1738728396528,1.1592,2722.7,2722.3,2.54078224]
[1738728397338,1.1592,2722.7,2722.4,0.45439244]
[1738728397536,1.1592,2722.7,2722.3,2.54078224]
[1738728397737,1.1592,2722.7,2722.6,2.54078224]
[1738728397936,3.21330196,2722.8,2722.6,2.54078224]
[1738728399033,0.00550196,2722.8,2722.7,0.45439339]
[1738728399334,0.00550196,2722.8,2722.7,4.25731609]
[1738728402031,0.00550196,2722.8,2722.7,9.25731609]
[1738728402230,3.2078,2723.5,2722.7,9.25731609]
[1738728402433,3.2078,2723.5,2723.4,2.54078224]
[1738728402635,0.5806,2723.8,2723.4,2.54078224]
[1738728402636,3.7884,2723.8,2723.4,2.54078224]
[1738728402930,3.2078,2723.8,2723.7,2.54078224]
[1738728403345,3.2078,2723.8,2723.4,2.54078224]
[1738728403531,3.2078,2723.8,2723.5,0.00550196]
[1738728403736,3.2078,2723.8,2723.7,2.54078224]
[1738728405644,3.2078,2723.8,2723.5,0.00550196]
[1738728406137,0.5775,2723.7,2723.5,0.00550196]
[1738728406543,0.5416,2723.6,2723.5,0.00550196]
[1738728407737,3.7494,2723.6,2723.5,0.00550196]
[1738728408342,8.7494,2723.6,2722.8,2.54078224]
[1738728408534,3.2078,2722.9,2722.5,5.74858224]
[1738728408735,3.2078,2722.9,2722.5,2.54078224]
[1738728410741,0.5515,2722.8,2722.5,2.54078224]
[1738728411138,3.2078,2722.6,2722.5,2.54078224]
[1738728411341,3.2078,2722.6,2722.4,0.00550196]
[1738728411538,0.5889,2722.5,2722.4,0.00550196]
[1738728411944,5.5889,2722.5,2721.6,2.54078224]
[1738728412147,3.2078,2722.0,2721.6,2.54078224]
[1738728412448,0.5515,2721.9,2721.6,2.54078224]
[1738728412648,0.5515,2721.9,2721.4,20.1738]
[1738728412840,0.5515,2721.9,2721.6,2.54078224]
[1738728413147,0.55700196,2721.9,2721.6,2.54078224]
[1738728414746,0.55700196,2721.9,2721.5,3.19294881]
[1738728418351,0.00550196,2721.9,2721.8,3.19294881]
[1738728420052,0.00550196,2721.9,2721.5,3.19294881]
[1738728420256,3.2078,2721.6,2721.4,16.96970404]
[1738728421360,3.2078,2721.6,2721.4,0.00370404]
[1738728427055,3.2078,2721.6,2720.9,3.16794405]
[1738728427250,3.2078,2721.2,2720.9,3.16794405]
[1738728428855,3.2078,2721.5,2720.9,6.37574405]
[1738728429053,3.2078,2721.5,2720.9,3.19294881]
[1738728429255,3.2078,2721.6,2720.9,3.19294881]
[1738728430257,3.2078,2721.6,2721.2,3.19294881]
[1738728430454,3.2078,2721.6,2720.9,3.2078]
[1738728430455,3.2078,2721.6,2720.9,6.40074881]
[1738728431856,3.2078,2721.6,2721.5,3.19294881]
[1738728432058,4.35290196,2721.9,2721.5,3.19294881]
[1738728432463,3.21330196,2721.9,2721.5,3.19294881]
[1738728432763,3.21330196,2721.9,2721.6,0.5994]
[1738728433150,0.00550196,2721.9,2721.6,3.8072]
[1738728433764,0.00550196,2721.9,2721.8,3.19294881]
[1738728436665,0.00550196,2721.9,2721.8,2.54710359]
[1738728437360,3.2078,2722.5,2721.8,8.00115267]
[1738728437560,3.2078,2722.5,2722.4,2.54710359]
[1738728442565,3.2078,2722.5,2722.2,0.00551217]
[1738728442962,0.5892,2722.4,2722.2,0.00551217]
[1738728443459,1.1541,2722.4,2722.2,0.00551217]
[1738728447870,3.2078,2722.5,2722.2,0.00551217]
[1738728448172,3.2078,2722.5,2722.4,2.54710359]
[1738728448976,0.00551217,2722.7,2722.4,2.54710359]
[1738728449173,0.00551217,2722.7,2722.5,1.1223]
[1738728449568,3.2078,2722.6,2722.5,0.5468]
[1738728449764,3.2078,2722.6,2722.4,2.54710359]
[1738728450772,3.7726,2722.6,2722.4,2.54710359]
[1738728450970,3.7726,2722.6,2722.2,0.00551217]
[1738728451174,3.2078,2722.3,2722.2,0.00551217]
[1738728453267,3.5288,2722.6,2722.2,0.55111217]
[1738728453268,2.964,2722.6,2722.2,0.55111217]
[1738728453467,2.964,2722.6,2722.4,2.54710359]
[1738728454680,2.964,2722.6,2722.2,1.11441217]
[1738728454881,3.21331217,2722.7,2722.2,1.11441217]
[1738728455175,3.2078,2722.4,2722.2,0.00551217]
[1738728455378,0.5766,2722.3,2722.2,0.00551217]
[1738728456979,3.2078,2722.4,2722.2,0.00551217]
[1738728460775,3.79751217,2722.7,2722.3,0.45554063]
[1738728460980,0.00551217,2722.7,2722.5,3.19150969]
[1738728461271,0.00551217,2722.7,2722.6,0.4555185]
[1738728464173,0.00551217,2722.7,2722.5,3.19150969]
[1738728464378,0.00551217,2722.7,2722.6,0.45568453]
[1738728468988,0.00551217,2722.7,2722.5,3.19150969]
[1738728469181,1.14881217,2722.7,2722.2,3.19702186]
[1738728469382,1.70021217,2722.7,2722.2,3.19702186]
[1738728471585,0.60431217,2722.7,2722.2,3.19702186]
[1738728471785,0.00551217,2722.7,2722.5,3.19150969]
[1738728471979,0.00551217,2722.7,2722.6,0.5847]
[1738728472785,0.00551217,2722.7,2722.6,1.04008768]
[1738728473384,0.00551217,2722.7,2722.6,6.04008768]
[1738728474488,0.00551217,2722.7,2722.6,1.03997853]
[1738728474688,0.00551217,2722.7,2722.6,1.03997974]
[1738728476581,0.00551217,2722.7,2722.6,3.58563641]
[1738728477181,3.2078,2723.7,2722.6,8.58563641]
[1738728477487,3.2078,2723.5,2723.3,2.54565667]
[1738728478088,3.2078,2723.5,2722.6,1.1703]
[1738728478089,0.5738,2723.4,2723.0,2.54565667]
[1738728478286,0.57931217,2723.4,2722.9,3.2078]
[1738728478492,0.57931217,2723.4,2723.3,2.54565667]
[1738728478987,0.00551217,2723.4,2723.3,2.54565667]
[1738728479692,0.00551217,2723.4,2723.0,2.54565667]
[1738728479888,3.2078,2723.3,2723.0,2.54565667]
[1738728480092,0.5992,2723.2,2723.0,2.54565667]
[1738728480295,1.1475,2723.2,2723.0,2.54565667]
[1738728480792,1.1475,2723.2,2722.8,0.00551217]
[1738728480990,3.2078,2723.0,2722.8,0.00551217]
[1738728483597,3.2078,2723.0,2722.9,0.00254721]
[1738728490995,0.5452,2723.3,2722.9,1.04098494]
[1738728490996,3.2078,2723.3,2722.9,1.04098494]
[1738728491201,3.2078,2723.3,2723.1,3.19121071]
[1738728492503,3.7655,2723.3,2723.1,3.19121071]
[1738728493398,3.7655,2723.3,2722.9,0.00254721]
[1738728493606,3.2078,2723.0,2722.9,0.00254721]
[1738728493798,3.2078,2723.0,2722.8,0.00551217]
[1738728494205,3.2078,2723.0,2722.2,3.19121071]
[1738728494401,1.1426,2723.2,2721.9,3.19121071]
[1738728494402,3.2078,2722.3,2721.9,3.19121071]
[1738728494597,3.2078,2722.3,2722.0,0.45556841]
[1738728494800,0.5914,2722.2,2721.9,3.19121071]
[1738728495012,3.2078,2722.0,2721.9,3.19121071]
[1738728497016,3.2078,2722.3,2721.9,3.64329196]
[1738728497217,3.2078,2722.3,2722.2,3.19121071]
[1738728497725,3.2078,2722.6,2722.2,3.6432247]
[1738728497918,3.2078,2723.3,2722.5,3.19121071]
[1738728498110,3.2078,2723.3,2722.2,7.66252675]
[1738728498111,3.2078,2723.3,2722.9,3.19121071]
[1738728498311,0.00551217,2723.4,2723.2,3.19121071]
[1738728498516,0.00551217,2723.4,2723.3,0.4518645]
[1738728498819,0.00551217,2723.4,2723.3,1.5444645]
[1738728499117,0.00551217,2723.4,2723.3,0.9964645]
[1738728499320,0.00551217,2723.4,2723.3,0.5446]
[1738728500024,0.00551217,2723.4,2723.2,3.19121071]
[1738728501523,3.21331217,2723.4,2723.2,3.19121071]
[1738728501715,3.21331217,2723.4,2723.1,0.00551217]
[1738728501924,0.5431,2723.3,2723.1,0.00551217]
[1738728502118,0.5431,2723.3,2722.4,1.295]
[1738728502420,3.2078,2722.5,2722.0,3.19121071]
[1738728505321,0.5926,2722.4,2722.0,3.19121071]
[1738728507527,0.5926,2722.4,2722.0,3.77861071]
[1738728508129,3.2078,2722.5,2722.0,3.77861071]
[1738728510232,3.2078,2722.5,2722.0,3.19121071]
[1738728510926,3.2078,2722.3,2722.0,3.19121071]
[1738728514528,3.2078,2722.3,2721.7,4.31441071]
[1738728514733,3.2078,2722.0,2721.7,4.31441071]
[1738728520730,3.2078,2722.0,2721.9,2.54710023]
[1738728524236,3.2078,2722.4,2721.9,2.54710023]
[1738728524537,3.2078,2722.4,2722.3,2.54710023]
[1738728525744,3.2078,2722.4,2722.0,2.54710023]
[1738728526042,3.2078,2722.1,2722.0,2.54710023]
[1738728526945,3.7744,2722.1,2722.0,2.54710023]
[1738728527140,3.2078,2722.1,2722.0,2.54710023]
[1738728528448,3.2078,2722.4,2722.0,2.54710023]
[1738728528638,3.2078,2722.4,2722.3,2.54710023]
[1738728531246,3.2078,2722.4,2722.3,3.0001047]
[1738728532238,3.2078,2722.4,2722.3,2.54710023]
[1738728533138,3.2078,2722.4,2722.0,2.54710023]
[1738728533334,3.2078,2722.1,2722.0,2.54710023]
[1738728534438,3.2078,2722.1,2722.0,3.00026519]
[1738728534642,3.2078,2722.1,2722.0,2.54710023]
[1738728535446,3.2078,2722.1,2722.0,3.00025162]
[1738728535648,3.2078,2722.1,2722.0,2.54710023]
[1738728537149,3.2078,2722.1,2721.7,2.54710023]
[1738728537346,3.2078,2721.8,2721.7,2.54710023]
[1738728538346,3.2078,2721.8,2721.7,3.00014324]
[1738728538552,3.2078,2721.8,2721.7,2.54710023]
[1738728538951,3.2078,2721.8,2721.7,3.00013789]
[1738728539147,3.2078,2721.8,2721.7,2.54710023]
[1738728539550,3.2078,2721.8,2721.4,2.54710023]
[1738728539851,3.2078,2721.5,2721.4,2.54710023]
[1738728540147,3.2078,2721.5,2721.1,3.2078]
[1738728540148,3.2078,2721.5,2721.1,5.75490023]
[1738728540342,0.5489,2721.4,2721.1,5.75490023]
[1738728540540,1.1182,2721.4,2721.2,0.45303424]
[1738728540743,1.1182,2721.4,2721.1,5.75490023]
[1738728540944,1.1182,2721.4,2721.2,0.45303242]
[1738728541145,1.1182,2721.4,2721.1,5.75490023]
[1738728541350,1.1182,2721.4,2721.2,0.45301888]
[1738728541544,1.1182,2721.4,2721.1,2.54710023]
[1738728542045,1.1182,2721.4,2721.2,0.45280806]
[1738728542245,1.1182,2721.4,2721.1,2.54710023]
[1738728542447,3.2078,2721.5,2721.2,0.45263875]
[1738728542649,6.1718,2721.9,2721.4,2.54710023]
[1738728542948,6.1718,2721.9,2721.7,2.54710023]
[1738728543252,3.2078,2721.9,2721.7,2.54710023]
[1738728546563,3.2078,2721.9,2721.4,2.54710023]
[1738728546853,3.2078,2721.6,2721.4,2.54710023]
[1738728547054,1.1811,2721.5,2721.4,2.54710023]
[1738728548651,9.1451,2721.5,2720.8,2.54710023]
[1738728548857,9.1451,2721.5,2720.3,3.2078]
[1738728548858,3.2078,2721.0,2720.3,3.7588]
[1738728549056,3.2078,2720.7,2720.3,3.7588]
[1738728549654,3.2078,2720.7,2720.3,0.551]
[1738728549862,3.2078,2720.4,2719.9,0.581]
[1738728550154,3.2078,2720.4,2719.4,0.551]
[1738728550155,3.2078,2720.1,2719.4,0.551]
[1738728550455,3.2078,2720.1,2719.8,2.54710023]
[1738728550659,3.2078,2720.1,2719.9,0.5492]
[1738728550851,3.2078,2720.1,2720.0,0.5744]
[1738728553255,3.2078,2720.1,2719.8,2.54710023]
[1738728558658,0.5644,2720.3,2719.8,2.54710023]
[1738728558869,0.5644,2720.3,2720.1,2.54710023]
[1738728559365,0.00551217,2720.4,2720.1,2.54710023]
[1738728559663,0.00551217,2720.4,2720.2,0.5682]
[1738728563166,3.2078,2720.8,2720.2,0.5682]
[1738728563467,3.2078,2720.8,2720.4,2.54710023]
[1738728565767,3.2078,2720.8,2720.7,2.54710023]
[1738728567773,3.2078,2720.8,2720.4,2.54710023]
[1738728567966,3.2078,2720.5,2720.4,2.54710023]
[1738728575566,3.2078,2720.8,2720.4,2.54710023]
[1738728576072,3.2078,2720.8,2720.7,2.54710023]
[1738728579680,0.00551217,2720.9,2720.7,2.99989158]
[1738728579880,0.00551217,2720.9,2720.7,2.54710023]
[1738728581073,0.00551217,2720.9,2720.8,1.291]
[1738728581275,0.00551217,2720.9,2720.8,5.49506738]
[1738728581483,0.00551217,2720.9,2720.8,6.09406738]
[1738728582180,0.00551217,2720.9,2720.8,11.09406738]
[1738728582377,3.2078,2722.0,2720.8,13.64116761]
[1738728582577,3.2078,2722.0,2721.9,2.54710023]
[1738728582976,3.2078,2722.0,2721.6,2.54710023]
[1738728584978,3.2078,2721.7,2721.5,0.00551217]
[1738728585177,1.1265,2721.6,2721.5,0.00551217]
[1738728585382,0.5652,2721.6,2721.5,0.00551217]
[1738728586185,3.2078,2721.7,2721.5,0.00551217]
[1738728586381,3.2078,2721.7,2721.6,2.54710023]
[1738728586582,3.21331217,2722.1,2721.6,3.67420023]
[1738728586883,3.21331217,2722.1,2722.0,2.54710023]
[1738728588785,0.00551217,2722.1,2722.0,2.54710023]
[1738728595681,0.00551217,2722.1,2721.7,2.54710023]
[1738728595980,0.00551217,2722.1,2721.5,0.00551217]
[1738728595981,3.2078,2721.8,2721.5,0.00551217]
[1738728596185,0.5926,2721.7,2721.5,0.00551217]
[1738728596387,1.1777,2721.7,2721.5,0.00551217]
[1738728597086,0.5851,2721.7,2721.5,0.00551217]
[1738728599584,0.5851,2721.7,2720.7,4.4978]
[1738728599893,3.2078,2721.1,2720.8,2.54710023]
[1738728600795,3.2078,2721.4,2720.8,2.54710023]
[1738728601093,0.5978,2721.3,2721.1,2.54710023]
[1738728601595,1.1844,2721.3,2721.1,2.54710023]
[1738728601795,1.1844,2721.3,2720.8,2.54710023]
[1738728602895,0.5529,2721.2,2720.8,2.54710023]
[1738728603588,0.5529,2721.2,2721.1,2.54710023]
[1738728605200,3.2078,2721.4,2721.1,2.54710023]
[1738728605398,2.964,2721.7,2721.1,2.54710023]
[1738728605399,3.2078,2721.7,2721.3,3.2078]
[1738728605589,3.2078,2721.7,2721.6,2.54710023]
[1738728607397,3.2078,2721.7,2721.3,2.54710023]
[1738728607591,3.2078,2721.4,2721.0,2.54710023]
[1738728607894,3.2078,2721.4,2720.6,3.766]
[1738728607895,3.2078,2721.1,2720.7,2.5526124]
[1738728612797,3.2078,2720.8,2720.7,0.00551217]
[1738728613101,3.2078,2720.8,2720.0,3.14531355]
[1738728613301,3.2078,2720.3,2720.0,3.14531355]
[1738728618500,0.00551217,2720.4,2720.0,3.14531355]
[1738728618805,3.2078,2720.8,2720.3,5.75490023]
[1738728619103,3.2078,2720.8,2720.7,2.54710023]
[1738728619500,4.3875,2721.1,2720.7,2.54710023]
[1738728620206,3.2078,2720.8,2720.7,2.54710023]
[1738728622604,3.2078,2720.8,2720.6,0.00551217]
[1738728624896,4.3875,2721.1,2720.7,2.54710023]
[1738728625103,4.3875,2721.1,2720.7,3.09340023]
[1738728626104,4.3875,2721.1,2720.7,2.54710023]
[1738728626508,3.2078,2720.8,2720.6,0.00551217]
[1738728634427,3.2078,2720.7,2720.6,0.00551217]
[1738728636434,8.2078,2720.7,2719.8,2.54710023]
[1738728636731,3.2078,2720.0,2719.8,2.54710023]
[1738728638635,3.2078,2720.4,2719.9,0.45271958]
[1738728638930,3.2078,2720.4,2720.1,2.54710023]
[1738728639126,3.2078,2720.4,2720.2,0.586]
[1738728639322,3.2078,2720.4,2720.2,1.1807]
[1738728641430,3.2078,2720.5,2720.2,1.1807]
[1738728641730,3.2078,2720.5,2720.4,2.54710023]
[1738728641927,3.2078,2720.8,2720.4,2.54710023]
[1738728642128,3.2078,2720.8,2720.7,2.54710023]
[1738728642330,3.2078,2721.1,2720.7,3.00001765]
[1738728642531,3.2078,2721.1,2721.0,2.54710023]
[1738728642930,3.2078,2721.4,2721.0,2.99999556]
[1738728643132,3.2078,2721.4,2721.0,2.54710023]
[1738728643333,1.1377,2721.8,2720.8,1.1599]
[1738728643334,3.2078,2721.1,2720.8,1.1599]
[1738728643632,3.2078,2721.1,2720.8,0.5923]
[1738728643829,0.5766,2721.0,2720.8,0.5923]
[1738728645135,0.5766,2721.0,2720.7,2.54710023]
[1738728645339,3.2078,2720.8,2720.4,3.13680023]
[1738728646437,0.5576,2720.7,2720.4,3.13680023]
[1738728649436,0.5766,2721.0,2720.4,3.13680023]
[1738728649637,1.1238,2721.0,2720.4,3.13680023]
[1738728649831,1.1238,2721.0,2720.5,0.45273446]
[1738728650037,3.2078,2720.8,2720.4,3.13680023]
[1738728650930,3.2078,2720.8,2720.5,0.4527584]
[1738728651133,3.2078,2720.8,2720.4,3.13680023]
[1738728653244,3.2078,2720.8,2720.5,0.45278259]
[1738728653434,3.2078,2720.8,2720.4,3.13680023]
[1738728660442,3.2078,2720.5,2720.4,3.13680023]
[1738728660635,3.2078,2720.5,2720.4,3.58961944]
[1738728662238,3.2078,2720.9,2720.4,3.58961944]
[1738728662442,3.2078,2721.5,2720.8,2.54710023]
[1738728662745,3.2078,2721.5,2721.1,2.54710023]
[1738728662945,3.2078,2721.5,2721.1,2.99991944]
[1738728663144,1.1272,2721.8,2720.9,1.8797]
[1738728663145,3.2078,2722.0,2721.4,2.54710023]
[1738728663347,3.2078,2722.0,2721.8,2.54710023]
[1738728663544,3.2078,2722.0,2721.9,0.5826]
[1738728663747,3.2078,2722.0,2721.9,1.04185048]
[1738728663964,3.2078,2722.0,2721.9,0.5826]
[1738728664241,3.2078,2722.0,2721.7,0.00551217]
[1738728665341,3.2078,2722.0,2721.7,2.5526124]
[1738728665548,0.00551217,2722.2,2721.7,5.7604124]
[1738728665743,0.00551217,2722.2,2722.0,2.54710023]
[1738728666841,0.00551217,2722.2,2722.1,0.5827]
[1738728667251,3.2078,2723.1,2722.1,12.38430357]
[1738728667548,3.2078,2723.1,2723.0,2.54710023]
[1738728668648,3.2078,2723.1,2722.7,2.54710023]
[1738728668844,0.5416,2723.0,2722.7,2.54710023]
[1738728669347,0.00551217,2723.3,2722.8,3.2078]
[1738728669545,0.00551217,2723.3,2723.0,2.54710023]
[1738728674351,3.2078,2723.1,2723.0,2.54710023]
[1738728674549,0.00551217,2723.3,2723.0,2.54710023]
[1738728675251,0.00551217,2723.3,2723.0,5.75490023]
[1738728676954,0.00551217,2723.3,2723.0,2.54710023]
[1738728684060,0.00551217,2723.3,2723.0,5.75490023]
[1738728685454,0.00551217,2723.3,2723.0,2.54710023]
[1738728685652,0.56831217,2723.3,2723.0,2.54710023]
[1738728685956,1.13371217,2723.3,2723.0,2.54710023]
[1738728686257,0.5808,2723.2,2723.0,2.54710023]
[1738728689257,3.2078,2723.1,2722.7,2.54710023]
[1738728690565,3.2078,2723.1,2723.0,2.54710023]
[1738728690852,0.5808,2723.2,2723.0,2.54710023]
[1738728691059,0.00551217,2723.3,2723.0,2.54710023]
[1738728691460,0.00551217,2723.3,2723.1,0.5664]
[1738728692758,0.00551217,2723.3,2723.0,2.54710023]
[1738728692956,1.75671217,2723.3,2723.0,2.54710023]
[1738728693262,1.75671217,2723.3,2723.1,0.4590472]
[1738728693263,1.19161217,2723.3,2723.1,0.4590472]
[1738728693454,1.19161217,2723.3,2723.2,0.4590472]
[1738728694050,1.19161217,2723.3,2723.0,2.54710023]
[1738728694262,0.5651,2723.2,2723.1,0.45907396]
[1738728694455,0.5651,2723.2,2723.0,2.54710023]
[1738728694859,3.2078,2723.1,2723.0,2.54710023]
[1738728695254,3.2078,2723.1,2723.0,3.00619912]
[1738728697164,3.2078,2723.1,2723.0,3.74075511]
[1738728697859,1.19161217,2723.3,2723.0,3.74075511]
[1738728698062,1.19161217,2723.3,2723.1,0.45909889]
[1738728698268,1.19161217,2723.3,2723.2,0.45909889]
[1738728700263,6.77894217,2723.3,2722.4,2.54710023]
[1738728700468,3.2078,2722.7,2722.5,1.19382559]
[1738728700668,0.5551,2722.6,2722.4,2.54710023]
[1738728700864,0.5551,2722.6,2722.5,0.45919073]
[1738728702773,1.1082,2722.6,2722.5,0.45919073]
[1738728704674,1.1082,2722.6,2722.1,2.54710023]
[1738728704865,1.1082,2722.6,2722.2,0.45920557]
[1738728704866,1.6652,2722.6,2722.2,0.45920557]
[1738728705068,1.6652,2722.6,2721.9,0.5913]
[1738728705069,1.6652,2722.6,2722.4,2.54710023]
[1738728705568,1.1082,2722.6,2722.4,2.54710023]
[1738728705767,0.5551,2722.6,2722.4,2.54710023]
[1738728708576,0.5551,2722.6,2722.1,2.54710023]
[1738728708868,1.1512,2722.5,2722.1,2.54710023]
[1738728709071,3.2078,2722.4,2721.9,0.5913]
[1738728709372,3.2078,2722.1,2721.8,2.54710023]
[1738728709577,0.5811,2722.0,2721.8,2.54710023]
[1738728710072,3.2078,2722.1,2721.8,2.54710023]
[1738728710282,3.7889,2722.4,2721.8,2.54710023]
[1738728710670,3.2078,2722.1,2721.8,2.54710023]
[1738728710876,0.5811,2722.4,2721.8,2.54710023]
[1738728710877,3.2078,2722.2,2721.8,2.54710023]
[1738728711078,0.5811,2722.4,2722.1,2.54710023]
[1738728711276,0.5811,2722.4,2722.2,0.5962]
[1738728712579,0.5811,2722.4,2722.1,2.54710023]
[1738728712783,3.2078,2722.2,2722.1,2.54710023]
[1738728713982,3.2078,2722.2,2721.8,2.54710023]
[1738728715287,3.2078,2721.9,2721.7,0.00551217]
[1738728715485,3.2078,2721.9,2720.9,2.54710023]
[1738728715486,1.1454,2721.8,2720.9,2.54710023]
[1738728715683,1.1454,2721.8,2720.7,1.145]
[1738728715684,3.2078,2721.0,2720.7,0.5534]
[1738728715884,3.2078,2721.0,2720.6,2.54710023]
[1738728716087,3.2078,2720.7,2720.6,2.54710023]
[1738728716583,3.2078,2720.7,2720.0,2.54710023]
[1738728716780,0.5885,2720.8,2720.4,0.00551217]
[1738728716983,3.2078,2720.5,2720.4,0.00551217]
[1738728720392,3.2078,2720.5,2719.7,2.54710023]
[1738728720688,1.17636,2720.8,2719.7,2.54710023]
[1738728720689,3.2078,2720.0,2719.7,2.54710023]
[1738728722383,3.2078,2720.0,2719.6,0.5534]
[1738728722585,3.2078,2720.0,2719.5,16.971]
[1738728722787,0.5942,2719.9,2719.5,16.971]
[1738728723094,0.5942,2719.9,2719.4,2.54710023]
[1738728725497,3.2078,2719.5,2719.1,2.54710023]
[1738728726188,3.7999,2719.8,2719.4,2.54710023]
[1738728726989,0.00551217,2719.9,2719.7,2.54710023]
[1738728727192,3.2078,2720.6,2719.8,0.5593]
[1738728727398,3.2078,2720.0,2719.8,3.10640023]
[1738728727994,3.2078,2720.0,2719.5,3.12610023]
[1738728728194,2.54710023,2720.7,2719.5,3.12610023]
[1738728728195,3.2078,2719.6,2719.5,3.12610023]
[1738728728497,3.2078,2719.6,2719.5,3.1316124]
[1738728728694,3.2078,2719.6,2719.5,0.58451217]
[1738728728894,3.2078,2719.6,2719.5,0.00551217]
[1738728730702,8.2078,2719.6,2719.5,0.00551217]
[1738728730898,8.2078,2719.6,2718.9,2.54710023]
[1738728731194,3.2078,2719.6,2718.9,2.54710023]
[1738728731797,3.2078,2719.1,2718.9,2.54710023]
[1738728734795,3.2078,2719.4,2719.0,3.2078]
[1738728734991,4.3288,2719.9,2719.3,2.54710023]
[1738728735203,4.3288,2719.9,2719.6,2.54710023]
[1738728735401,0.00551217,2720.0,2719.6,2.54710023]
[1738728735701,0.00551217,2720.0,2719.9,2.54710023]
[1738728736195,3.2078,2720.6,2719.9,10.75490023]
[1738728736402,3.2078,2720.6,2720.5,2.54710023]
[1738728736601,3.2078,2720.6,2720.5,3.19526054]
[1738728736802,3.2078,2721.3,2720.5,6.40306054]
[1738728737003,3.2078,2721.3,2720.9,3.19526054]
[1738728737200,3.2078,2721.6,2721.2,3.19526054]
[1738728737392,0.00551217,2721.4,2721.2,3.19526054]
[1738728739096,0.00551217,2721.4,2721.0,0.5728]
[1738728739306,3.2078,2721.2,2721.0,0.5728]
[1738728739505,3.2078,2721.2,2720.9,3.19526054]
[1738728740802,0.00551217,2721.4,2720.9,3.19526054]
[1738728742805,3.2078,2721.2,2720.9,3.19526054]
[1738728743609,3.2078,2721.2,2720.8,0.00551217]
[1738728743903,3.2078,2720.9,2720.8,0.00551217]
[1738728746410,3.2078,2721.2,2720.8,0.00551217]
[1738728748808,0.00551217,2721.4,2720.9,6.40306054]
[1738728749013,0.00551217,2721.4,2721.3,3.19526054]
[1738728749313,0.00551217,2721.4,2721.3,3.75726054]
[1738728751616,0.00551217,2721.4,2721.3,5.04026054]
[1738728752315,0.00551217,2721.4,2721.3,3.19526054]
[1738728752518,3.21331217,2721.4,2720.8,0.00551217]
[1738728752713,3.2078,2721.1,2720.8,0.00551217]
[1738728753218,0.5439,2721.0,2720.0,3.19526054]
[1738728753416,3.2078,2720.4,2720.0,3.19526054]
[1738728753807,3.2078,2720.7,2720.0,3.19526054]
[1738728754013,3.2078,2720.4,2720.0,3.19526054]
[1738728764423,3.2078,2720.4,2720.3,3.19526054]
[1738728764622,3.7922,2720.9,2720.3,5.75774623]
[1738728764823,3.7922,2720.9,2720.7,2.54994623]
[1738728765418,3.2078,2720.9,2720.7,2.54994623]
[1738728766830,3.2078,2720.9,2720.3,3.2078]
[1738728766831,3.2078,2720.9,2720.4,3.19552206]
[1738728768618,3.2078,2720.6,2720.1,4.47752206]
[1738728768815,3.2078,2720.6,2720.1,3.19552206]
[1738728769015,3.2078,2720.6,2719.9,3.2078]
[1738728769221,0.5753,2720.5,2719.9,3.2078]
[1738728770238,0.5753,2720.5,2720.1,3.19552206]
[1738728771127,0.5439,2721.0,2720.1,3.19552206]
[1738728771326,0.5439,2721.0,2719.8,0.5857]
[1738728771327,3.2078,2720.9,2720.4,3.19552206]
[1738728771535,3.2078,2720.9,2720.5,0.5787]
[1738728772930,3.2078,2720.9,2720.4,3.19552206]
[1738728773233,3.2078,2720.6,2720.4,3.19552206]
[1738728773532,3.2078,2720.9,2720.5,0.45946439]
[1738728773726,3.2078,2720.9,2720.8,3.19552206]
[1738728774129,3.2078,2720.9,2720.6,0.548]
[1738728774633,3.2078,2720.9,2720.5,3.78252206]
[1738728777741,3.2078,2720.6,2720.2,3.19552206]
[1738728777938,0.5485,2720.5,2720.2,3.19552206]
[1738728778136,0.5485,2720.5,2719.9,6.40332206]
[1738728780035,1.1552,2720.8,2720.2,3.19552206]
[1738728780336,1.1552,2720.8,2720.3,0.549]
[1738728780730,0.5667,2720.8,2720.3,0.549]
[1738728781532,3.2078,2720.6,2720.3,0.549]
[1738728782130,3.2078,2720.6,2720.2,3.19552206]
[1738728782339,0.5667,2720.8,2720.3,0.45952291]
[1738728782637,0.5667,2720.8,2720.2,3.19552206]
[1738728782938,0.5667,2720.8,2720.3,0.45951123]
[1738728783137,0.5667,2720.8,2720.0,0.5764]
[1738728783138,3.2078,2720.6,2720.0,0.5764]
[1738728783440,3.2078,2720.6,2720.1,0.4595384]
[1738728783640,3.2078,2720.6,2720.2,0.45955014]
[1738728783832,3.2078,2720.6,2720.0,0.5764]
[1738728784028,3.2078,2720.6,2720.1,0.45955277]
[1738728784233,3.2078,2720.6,2720.0,0.5764]
[1738728784437,3.2078,2720.6,2720.1,0.45955056]
[1738728784639,3.2078,2720.6,2720.0,0.5764]
[1738728784839,3.2078,2720.6,2720.1,0.45955051]
[1738728785043,3.2078,2720.6,2720.0,0.5764]
[1738728785334,3.2078,2720.6,2719.5,1.1681]
[1738728785335,3.2078,2720.2,2720.1,0.45955074]
[1738728785538,3.2078,2720.2,2719.6,3.19552206]
[1738728785737,1.0994,2720.1,2719.7,0.45960842]
[1738728786036,1.0994,2720.1,2719.8,0.45961818]
[1738728786239,3.2078,2719.9,2719.6,3.19552206]
[1738728786538,3.2078,2719.9,2719.7,0.4596282]
[1738728786740,3.2078,2719.9,2719.8,3.57612748]
[1738728789238,3.2078,2719.9,2719.8,3.57609741]
[1738728789637,0.00551217,2720.0,2719.8,3.57609741]
[1738728789941,0.00551217,2720.0,2719.9,0.45957089]